Cogmind - Beta 15 @@@ ROGUE MODE // 2025.06.08 @ 22:43:35 Player: nado Result: Destroyed by H-66 Slayer with Gauss Rifle Performance ------------- Evolutions (4) 2000 Regions Visited (13) 2600 Robots Destroyed (170) 850 Value Destroyed (5020) 5020 Prototype IDs (25) 500 Alien Tech Used (0) 0 Bonus (599) 599 TOTAL SCORE: 11569 Bonus ------- High Alert Combat Kills 278 Follower Combat Kills 21 Met Data Miner 300 Cogmind --------- Core Integrity 0/850 Matter 75/300 Energy 94/100 System Corruption 2% Temperature Warning (387) Movement Core (50) Location -6/Factory Parts ------- > --- POWER (2) -------- (None) > --- PROPULSION (4) --- (None) > --- UTILITY (6) ------ (None) > --- WEAPON (3) ------- (None) > --- INVENTORY (5) ---- Heavy Deuterium Engine Makeshift Shrapnel Gun Improved Grenade Launcher Missile Launcher Powered Hammer Peak State ------------ > --- POWER ------------ Heavy Deuterium Engine Heavy Deuterium Engine > --- PROPULSION ------- Armored Treads Advanced Treads Advanced Treads Advanced Treads > --- UTILITY ---------- Huge Storage Unit Experimental Sensor Array Advanced Signal Interpreter Transmission Jammer Hardened Medium Armor Plating Hacking Suite > --- WEAPON ----------- Thermic Laser Coil Gun Advanced Assault Cannon > --- INVENTORY -------- Heavy Deuterium Engine Heavy Deuterium Engine Heavy Deuterium Engine Enhanced Nuclear Core Micro Nuclear Core Light Angular Momentum Engine Improved Cooling System Huge Storage Unit Advanced Terrain Scanner Advanced Terrain Scan Processor High-powered Tractor Beam Heavy Laser Proton Cannon Ion Cannon Makeshift Shrapnel Gun Improved Grenade Launcher Missile Launcher Plasma Cutter Powered Hammer [Rating: 68] Favorites ----------- Power Light Neutrino Core Engine Heavy Ion Engine Power Core Light Neutrino Core Propulsion Light Treads Treads Light Treads Leg Aluminum Leg Utility Huge Storage Unit Device Hardlight Generator Storage Huge Storage Unit Processor Improved Signal Interpreter Hackware Hacking Suite Protection Hardened Medium Armor Plating Weapon Enhanced Autogun Energy Gun EM Pulse Gun Energy Cannon Ion Cannon Ballistic Gun Enhanced Autogun Ballistic Cannon Flak Cannon Launcher Rocket Launcher Build | -11 -10 -10 -9 -9 -9 -8 -8 -7 -7 -7 -7 -6 -6 ------- Run | Yrd Mat Min Mat Min Exi Min Mat Fac Low Low Dat Pro Fac Slots Evolved 8 | . . . 2 . . . 2 2 . . . . 2 Power 1 | . . . . . . . . . . . . . 1 Propulsion 2 | . . . 1 . . . . . . . . . 1 Utility 4 | . . . . . . . 2 2 . . . . . Weapon 1 | . . . 1 . . . . . . . . . . Parts Attached 116 | . 9 6 21 . 11 3 26 15 1 7 2 3 12 Power 17 | . 1 1 4 . 1 . 4 1 . 1 . . 4 Engine 14 | . 1 1 4 . 1 . 3 . . 1 . . 3 Core 3 | . . . . . . . 1 1 . . . . 1 Reactor . | . . . . . . . . . . . . . . Propulsion 35 | . 3 1 8 . 2 2 8 5 . 3 . . 3 Treads 35 | . 3 1 8 . 2 2 8 5 . 3 . . 3 Leg . | . . . . . . . . . . . . . . Wheel . | . . . . . . . . . . . . . . Hover . | . . . . . . . . . . . . . . Flight . | . . . . . . . . . . . . . . Utility 30 | . 3 1 4 . 3 1 6 5 . 3 . 2 2 Device 10 | . 1 1 1 . . . 4 2 . 1 . . . Storage 4 | . 2 . 1 . . . . . . . . . 1 Processor 2 | . . . . . . . . 1 . . . 1 . Hackware 1 | . . . . . . . . 1 . . . . . Protection 13 | . . . 2 . 3 1 2 1 . 2 . 1 1 Artifact . | . . . . . . . . . . . . . . Weapon 34 | . 2 3 5 . 5 . 8 4 1 . 2 1 3 Energy Gun 1 | . . . . . . . . . . . . . 1 Energy Cannon 5 | . . . . . . . 2 2 . . . . 1 Ballistic Gun 18 | . 2 3 2 . 1 . 6 1 1 . 1 . 1 Ballistic Cannon 5 | . . . 1 . 3 . . . . . 1 . . Launcher 5 | . . . 2 . 1 . . 1 . . . 1 . Special Weapon . | . . . . . . . . . . . . . . Impact Weapon . | . . . . . . . . . . . . . . Slashing Weapon . | . . . . . . . . . . . . . . Piercing Weapon . | . . . . . . . . . . . . . . Special Melee Weapon . | . . . . . . . . . . . . . . Unidentified Prototypes 3 | . . . 1 . . . 1 1 . . . . . Parts Lost 53 | . 1 3 3 . 12 3 3 1 . 6 . 2 19 Power 6 | . . . . . 2 . . . . 1 . 1 2 Propulsion 21 | . 1 1 3 . 3 2 2 . . 2 . . 7 Utility 14 | . . 1 . . 3 1 1 1 . 3 . 1 3 Weapon 12 | . . 1 . . 4 . . . . . . . 7 Highest Loss Streak 13 | . 1 1 1 . 5 2 2 1 . 6 . 1 13 To Critical Strikes 4 | . . . . . 3 . . . . . . . 1 Average Backups 20 | 6 13 19 22 25 13 17 24 24 25 21 21 19 19 Power 2 | 1 2 4 2 2 1 4 3 2 2 1 1 1 2 Propulsion 4 | 4 4 3 6 8 4 4 5 5 6 4 4 4 2 Utility 5 | . . 2 4 7 3 4 6 8 9 7 6 5 4 Weapon 7 | 1 6 9 8 6 3 3 7 7 7 7 9 7 8 Tool/Special . | . . . . . . . . . . . . . . Unused Backups 51 | . 2 1 11 1 7 . 10 9 . . . . 10 Power 15 | . . . 4 . 3 . 3 1 . . . . 4 Propulsion 7 | . . 1 1 . . . 1 4 . . . . . Utility 13 | . 1 . 1 . 4 . 2 2 . . . . 3 Weapon 15 | . 1 . 5 1 . . 4 2 . . . . 2 Tool/Special 1 | . . . . . . . . . . . . . 1 Average Slot Usage (%) 93 | . 92 97 95 100 72 87 99 99 100 99 76 98 85 Engine 7 | . 14 14 9 11 7 . 7 . . 3 7 5 6 Core 1 | . . . . . . . 1 6 7 3 . . . Treads 27 | . 23 27 32 33 32 32 26 23 23 23 23 23 23 Device 9 | . 7 11 . . . . 16 16 15 14 15 14 12 Storage 9 | . 14 14 11 11 9 11 9 7 7 7 7 7 5 Processor 2 | . . . . . . . . 6 7 7 7 7 5 Hackware 2 | . . . . . . . . 5 7 7 7 7 5 Protection 7 | . . . 9 11 11 11 9 7 7 7 7 7 5 Energy Cannon 1 | . . . . . . . 1 2 7 7 . 7 4 Ballistic Gun 16 | . 25 28 22 22 2 . 21 19 15 13 . 7 7 Ballistic Cannon 4 | . . . 10 11 7 27 3 . . . . 6 . Peak Build Rating 68 | 6 9 11 19 20 21 18 35 53 53 53 52 55 68 Average Rating 28 | 6 7 9 16 19 12 17 32 49 52 51 42 52 54 On Entrance 27 | 6 6 9 8 19 20 15 18 35 48 53 52 52 48 Naked Turns 9 | . . . . . . . . . . . . . 9 Heaviest Build 125 | 12 48 50 104 104 109 103 117 117 115 123 122 122 125 Greatest Support 84 | 20 46 46 60 60 60 60 60 60 60 62 62 62 84 Greatest Overweight (x) 2 | . 1 1 2 1 2 1 2 1 1 1 1 1 1 Average Overweight (x) . | . . 1 . 1 . 1 1 1 1 1 1 1 . Largest Inventory Capacity 25 | 8 20 20 25 25 25 25 25 25 25 25 25 25 25 Average Capacity 23 | 8 18 20 22 25 22 25 25 25 25 25 25 25 24 Most Carried 25 | 6 19 20 25 25 25 18 25 25 25 25 22 20 23 Average Carried 20 | 6 13 19 22 24 12 17 24 24 25 21 21 19 19 Final Capacity 25 | 8 20 20 25 25 25 25 25 25 25 25 25 25 5 Final Carried 25 | 6 19 19 25 25 19 17 25 25 25 19 19 19 5 Class Distribution -------------------- 32% | Scavenger-Tank 30% | Mutant 21% | Tank 9% | Skirmisher 3% | Scavenger-Mutant Dominant Class ---------------- Mutant | -10/Materials Mutant | -10/Mines Scavenger-Tank | -9/Materials Tank | -9/Mines Mutant | -9/Exiles Tank | -8/Mines Scavenger-Tank | -8/Materials Scavenger-Tank | -7/Factory Tank | -7/Lower Caves Tank | -7/Lower Caves Mutant | -7/Data Miner Skirmisher | -6/Proximity Caves Mutant | -6/Factory Resources | -11 -10 -10 -9 -9 -9 -8 -8 -7 -7 -7 -7 -6 -6 ----------- Run | Yrd Mat Min Mat Min Exi Min Mat Fac Low Low Dat Pro Fac Matter Collected 6113 | 200 240 258 1037 32 1201 305 1104 569 367 201 . 240 359 Remotely . | . . . . . . . . . . . . . . Salvage Created 5816 | . 529 194 1565 47 204 266 1298 697 45 165 . 263 543 Parts 350 | . 30 . 109 8 29 10 76 44 2 5 . 12 25 Haulers Intercepted 14 | . 2 . 6 . . . 4 1 . . . . 1 Recyclers Shooed 11 | . . 1 1 . . 1 3 3 . . . . 2 Parts Field Recycled . | . . . . . . . . . . . . . . Retrieved Matter . | . . . . . . . . . . . . . . Parts Self-Destructed 16 | . . . . . . . . . 2 6 . 8 . Prevented . | . . . . . . . . . . . . . . Kills | -11 -10 -10 -9 -9 -9 -8 -8 -7 -7 -7 -7 -6 -6 ------- Run | Yrd Mat Min Mat Min Exi Min Mat Fac Low Low Dat Pro Fac Combat Hostiles Destroyed 147 | . 14 13 36 4 5 9 30 8 1 7 . 9 11 Melee 1 | . . . . . 1 . . . . . . . . Guns 70 | . 14 12 20 3 . . 12 4 1 1 . 1 2 Cannons 42 | . . . 11 1 1 7 12 4 . . . 1 5 AOE 34 | . . 1 5 . 3 2 6 . . 6 . 7 4 Classes Destroyed 19 | . 4 1 6 . 2 . 2 1 1 1 . 1 . Worker 6 | . . . 4 . . 1 . 1 . . . . . Builder 2 | . . . 1 . . . . 1 . . . . . Tunneler 1 | . . . 1 . . . . . . . . . . Hauler 14 | . 2 . 6 . . . 4 1 . . . . 1 Recycler 9 | . . . 2 . . 2 2 3 . . . . . Operator 1 | . 1 . . . . . . . . . . . . Drone 1 | . . . . . . . . . . . . 1 . Turret 1 | . . . . . 1 . . . . . . . . Watcher 2 | . . . 2 . . . . . . . . . . Swarmer 35 | . 8 . 10 4 . 6 6 . . 1 . . . Grunt 51 | . 6 . 16 . . 3 13 . . 2 . 5 6 Brawler 2 | . . . . . . . . . . 1 . 1 . Duelist 5 | . . . . . . . 1 . . 2 . 1 1 Sentry 22 | . . . 10 . . . 8 3 . 1 . . . Specialist 2 | . . . . . . . 2 . . . . . . Hunter 5 | . . . . . . . . . 1 . . 1 3 Programmer 6 | . . . . . . . . 5 . . . . 1 Zionite 4 | . . . . . 4 . . . . . . . . Assembled 17 | . . 13 . . 4 . . . . . . . . Best Kill Streak 11 | . 5 3 11 2 4 3 8 2 1 5 . 4 4 Combat Bots Only 8 | . 5 3 7 2 3 3 8 1 1 5 . 4 4 Max Kills in Single Turn 5 | . 1 1 5 1 1 1 2 1 1 3 . 2 1 Gunslinging . | . . . . . . . . . . . . . . Exploded 3 | . . 1 3 . 1 1 2 . . 3 . 2 1 Melee 1 | . . . . . 1 . . . . . . . . Uniques/NPCs Destroyed 2 | . . . . . 2 . . . . . . . . 8R-AWN (-9/Exiles) EX-HEX (-9/Exiles) Combat | -11 -10 -10 -9 -9 -9 -8 -8 -7 -7 -7 -7 -6 -6 -------- Run | Yrd Mat Min Mat Min Exi Min Mat Fac Low Low Dat Pro Fac Hostile Shots Fired 1010 | . 77 47 100 13 129 25 121 154 2 79 . 22 241 Missed 266 | . 16 11 31 3 25 4 35 57 2 24 . 9 49 Hits 744 | . 61 36 69 10 104 21 86 97 . 55 . 13 192 Melee 26 | . . 8 . . . . 2 . . 9 . . 7 Projectile 718 | . 61 28 69 10 104 21 84 97 . 46 . 13 185 Critical Strikes 54 | . 1 . 1 . 31 . 6 4 . 2 . . 9 Part Disruptions 4 | . . 2 . . . . . 1 . . . . 1 Damage Taken 10949 | . 569 537 846 77 1824 247 1071 879 . 1100 . 219 3580 Core 1735 | . 53 103 36 17 295 8 181 120 . 39 . 18 865 Absorbed by Shields 455 | . . . . . . . 148 184 . 52 . . 71 Redirected to Shielding 59 | . . . . . . . . . . 59 . . . Ignored by Resistances 87 | . . . . . . . . . . 68 . 19 . Regen/Repaired (Parts) 120 | . . . 120 . . . . . . . . . . Core Remaining (%) 57 | 100 . 37 . . . 11 67 . . . . 74 . Volleys Fired 441 | . 45 39 76 8 58 14 73 55 2 11 . 15 45 Largest 3 | . 2 2 3 3 3 3 3 3 3 2 . 3 3 Hottest 155 | . 60 40 80 80 97 111 149 113 112 88 . 125 155 Shots Fired 1023 | . 90 78 211 25 125 31 166 149 8 17 . 28 95 Gun 634 | . 90 78 138 16 40 . 83 121 4 6 . 7 51 Cannon 324 | . . . 66 9 64 26 77 26 4 6 . 11 35 Launcher 65 | . . . 7 . 21 5 6 2 . 5 . 10 9 Special . | . . . . . . . . . . . . . . Kinetic 833 | . 81 78 204 25 104 26 123 121 4 6 . 12 49 Thermal 115 | . . . . . . . 37 26 4 6 . 6 36 Explosive 65 | . . . 7 . 21 5 6 2 . 5 . 10 9 Electromagnetic 10 | . 9 . . . . . . . . . . . 1 Robot Hit Streak 24 | . 12 7 14 3 10 3 11 12 17 7 . 14 24 Robot Miss Streak 12 | . 7 4 5 8 7 12 5 6 1 1 . 2 3 Penetration Max 1 | . . . . . . . . . . 1 . . 1 Secondary Targets 1 | . . 1 . . . . . . . . . . . Max Gunslinging Chain 1 | . . 1 . . . . . . . . . . . Shots Hit Robots 653 | . 55 51 137 9 83 22 110 90 4 13 . 19 60 Core Hits 440 | . 27 26 106 7 62 27 77 26 3 21 . 21 37 Critical Kills 3 | . . . 1 . . . . 1 . 1 . . . Critical Parts Destroyed 4 | . . . 2 . . . . 1 . . . . 1 Critical Strikes 10 | . . . 3 . 1 . . 2 . 2 . . 2 Burn 1 | . . . . . . . . . . . . . 1 Destroy 9 | . . . 3 . 1 . . 2 . 2 . . 1 Melee Attacks . | . . . . . . . . . . . . . . Impact . | . . . . . . . . . . . . . . Slashing . | . . . . . . . . . . . . . . Piercing . | . . . . . . . . . . . . . . Sneak Attacks . | . . . . . . . . . . . . . . Combat Hostiles . | . . . . . . . . . . . . . . Follow-up Attacks . | . . . . . . . . . . . . . . Damage Inflicted 16155 | . 666 576 2706 117 2121 861 2961 1940 68 1256 . 1075 1808 Guns 6090 | . 655 568 1255 70 333 . 925 1418 44 139 . 43 640 Cannons 4836 | . . . 787 47 1114 217 1295 464 24 115 . 132 641 Explosions 4939 | . . . 611 . 654 635 667 . . 999 . 900 473 Melee . | . . . . . . . . . . . . . . Ramming 290 | . 11 8 53 . 20 9 74 58 . 3 . . 54 Kinetic 8978 | . 591 568 2042 117 1447 217 1560 1418 44 139 . 129 706 Thermal 2239 | . . . . . . 277 738 464 24 115 . 46 575 Explosive 4584 | . . . 611 . 654 358 589 . . 999 . 900 473 Electromagnetic 64 | . 64 . . . . . . . . . . . . Impact . | . . . . . . . . . . . . . . Slashing . | . . . . . . . . . . . . . . Piercing . | . . . . . . . . . . . . . . Highest Corruption 13 | . . 4 5 5 13 13 3 6 6 6 6 6 2 Average Corruption 5 | . . 4 5 5 6 13 3 3 6 6 6 6 1 Corruption Purged . | . . . . . . . . . . . . . . Corruption Blocked . | . . . . . . . . . . . . . . Effects 311 | . . 5 10 8 86 19 40 38 35 32 5 33 . Message Errors 71 | . . 3 1 2 15 2 15 8 9 5 . 11 . Matter Fused 73 | . . . 3 2 23 6 7 7 7 7 3 8 . Heat Flow Errors 35 | . . . 3 1 10 3 3 5 3 1 1 5 . Energy Discharges 41 | . . 1 1 . 16 3 4 6 5 4 . 1 . Parts Rejected 2 | . . . . . 1 . 1 . . . . . . Parts Fused 5 | . . . . . 2 . 1 . 1 . . 1 . Data Loss (minor) 39 | . . . 1 . 10 1 3 4 5 11 1 3 . Data Loss (major) 15 | . . 1 1 2 3 1 2 2 2 1 . . . Misfires 10 | . . . . 1 1 1 1 . 2 1 . 3 . Alerts 10 | . . . . . 3 1 1 2 1 1 . 1 . Weapon Failures 10 | . . . . . 2 1 2 4 . 1 . . . Overload Shots . | . . . . . . . . . . . . . . Overflow Damage 186 | . . . 44 . 45 9 52 24 . 6 . . 6 Projectiles 47 | . . . . . . . 21 24 . . . . 2 Explosions 134 | . . . 44 . 45 9 26 . . 6 . . 4 Melee 5 | . . . . . . . 5 . . . . . . Knockbacks 72 | . . . 26 1 10 4 25 . . . . 1 5 Impact 3 | . . . . . . . 1 . . . . . 2 Kinetic 61 | . . . 24 1 10 4 19 . . . . 1 2 Secondary 8 | . . . 2 . . . 5 . . . . . 1 Self-Inflicted Damage 199 | . . . 90 . 68 . 27 . . 14 . . . Shots 6 | . . . 1 . 2 . 2 . . 1 . . . Rammed 37 | . 1 2 5 . 2 2 6 10 . 1 . . 8 Targets Rammed 40 | . 3 2 6 . 2 2 6 10 . 1 . . 8 Kicked 2 | . 2 . . . . . . . . . . . . Crushed 1 | . . . 1 . . . . . . . . . . Highest Temperature 693 | . 12 20 269 289 276 257 254 449 262 167 246 219 693 Average Temperature 99 | . 7 20 56 106 105 79 48 150 85 47 134 70 171 Received Heat Transfer 1879 | . 129 180 231 . 80 81 371 93 . 270 . 81 363 Effects 21 | . . . . . 1 . . 9 . . . . 11 Shutdowns 5 | . . . . . . . . 2 . . . . 3 Energy Bleed 4 | . . . . . 1 . . 2 . . . . 1 Matter Decay 1 | . . . . . . . . . . . . . 1 Short Circuit 1 | . . . . . . . . 1 . . . . . Damage (minor) 3 | . . . . . . . . 1 . . . . 2 Damage (major) 6 | . . . . . . . . 3 . . . . 3 Damage (core) 1 | . . . . . . . . . . . . . 1 Siege Activations . | . . . . . . . . . . . . . . Martial Activations . | . . . . . . . . . . . . . . Shielding Activations . | . . . . . . . . . . . . . . Robots Disrupted . | . . . . . . . . . . . . . . Combat Hostiles . | . . . . . . . . . . . . . . Robots Corrupted . | . . . . . . . . . . . . . . Combat Hostiles . | . . . . . . . . . . . . . . Parts Fried . | . . . . . . . . . . . . . . Impact Corruptions 1 | . . . . . . . 1 . . . . . . Robots Melted . | . . . . . . . . . . . . . . Combat Hostiles . | . . . . . . . . . . . . . . Parts Melted 5 | . . . . . . . 2 1 . . . . 2 Heat Transferred 3313 | . . . . . . 300 1062 703 37 185 . 74 952 Parts Sabotaged . | . . . . . . . . . . . . . . Parts Stolen . | . . . . . . . . . . . . . . Parts Stripped . | . . . . . . . . . . . . . . Power Chain Reactions . | . . . . . . . . . . . . . . Alert | -11 -10 -10 -9 -9 -9 -8 -8 -7 -7 -7 -7 -6 -6 ------- Run | Yrd Mat Min Mat Min Exi Min Mat Fac Low Low Dat Pro Fac Maximum Alert Level 3 | . . . 1 . . . 1 . . . . . 3 Low Security (%) 72 | 100 100 100 39 100 . 100 56 100 . . . . . Level 1 21 | . . . 60 . . . 43 . . . . . . Level 2 . | . . . . . . . . . . . . . 12 Level 3 4 | . . . . . . . . . . . . . 87 Level 4 . | . . . . . . . . . . . . . . Level 5 . | . . . . . . . . . . . . . . High Security . | . . . . . . . . . . . . . . Max Security . | . . . . . . . . . . . . . . Peak Influence 951 | . 126 73 360 121 . 152 381 71 . . . . 951 Initial 951 | . . . . 96 . . 21 71 . . . . 951 Average 142 | . 42 3 188 74 . 75 205 19 . . . . 839 Influence Increases 4952 | . 463 81 1124 105 . 282 971 346 30 140 . 200 1210 Destroy 0b10 Robot/C 2620 | . 280 60 720 80 . 180 600 160 20 140 . 160 220 Destroy 0b10 Robot/NC 185 | . 15 . 80 . . 15 30 30 . . . 10 5 Destroy Leader 642 | . 64 10 186 10 . 30 158 82 10 . . 30 62 Allied During Kill 11 | . . 11 . . . . . . . . . . . Successful Hack 104 | . 12 . 30 . . . 22 40 . . . . . Select Force Hacks 30 | . 30 . . . . . . . . . . . . Disable Machine 120 | . 15 . 15 . . 30 45 15 . . . . . Destroy Structure 190 | . 2 . 63 . . 27 71 19 . . . . 8 Advance Influence 900 | . . . . . . . . . . . . . 900 Partial Spotted 15 | . . . . . . . . . . . . . 15 Lose Combat Pursuer 135 | . 45 . 30 15 . . 45 . . . . . . Influence Decreases 4381 | . 463 81 875 333 21 226 869 456 78 140 . 118 721 Entered New Map 346 | . . . . 153 21 . 35 87 19 . . . 31 Time Decay 3087 | . 415 81 555 180 . 206 654 369 59 100 . 118 350 Search Patrol Dispatched 150 | . . . . . . . . . . . . . 150 Lost Part 310 | . 10 . 20 . . 20 30 . . 40 . . 190 Purge Threat 488 | . 38 . 300 . . . 150 . . . . . . Squads Dispatched 19 | . 3 . 2 . . . 5 5 . 1 . . 3 Investigation 3 | . 2 . . . . . . . . . . . 1 Extermination 6 | . . . . . . . . 5 . . . . 1 Reinforcement 7 | . 1 . 2 . . . 3 . . . . . 1 Assault 1 | . . . . . . . . . . 1 . . . Garrison 2 | . . . . . . . 2 . . . . . . Intercept . | . . . . . . . . . . . . . . Searches Triggered 1 | . . . . . . . . . . . . . 1 Construction Impeded 1 | . . . 1 . . . . . . . . . . Haulers Reinforced 1 | . . . . . . . . . . . . . 1 Active Scanning Responses . | . . . . . . . . . . . . . . Cargo Convoy Interrupts 1 | . . . . . . . . . . . . . 1 Stealth | -11 -10 -10 -9 -9 -9 -8 -8 -7 -7 -7 -7 -6 -6 --------- Run | Yrd Mat Min Mat Min Exi Min Mat Fac Low Low Dat Pro Fac Distress Signals 10 | . 2 . 4 . . . 3 1 . . . . . Communications Jammed 14 | . . . . . . . . 1 . . . . 13 Distress Signals 14 | . . . . . . . . 1 . . . . 13 Times Spotted 255 | . 29 18 52 5 30 9 46 18 1 7 . 11 29 Peak Tracking Total 13 | . 7 3 10 3 9 3 5 5 1 7 . 3 13 Tactical Retreats 19 | . 2 5 2 1 7 . 2 . . . . . . Traps | -11 -10 -10 -9 -9 -9 -8 -8 -7 -7 -7 -7 -6 -6 ------- Run | Yrd Mat Min Mat Min Exi Min Mat Fac Low Low Dat Pro Fac Traps Triggered 3 | . 2 . . . . . . . . . . . 1 Indirectly . | . . . . . . . . . . . . . . Trap Hack Attempts . | . . . . . . . . . . . . . . Triggered . | . . . . . . . . . . . . . . Disarmed . | . . . . . . . . . . . . . . Reprogrammed . | . . . . . . . . . . . . . . Reused . | . . . . . . . . . . . . . . Traps Extracted . | . . . . . . . . . . . . . . Installed . | . . . . . . . . . . . . . . Triggered . | . . . . . . . . . . . . . . Machines | -11 -10 -10 -9 -9 -9 -8 -8 -7 -7 -7 -7 -6 -6 ---------- Run | Yrd Mat Min Mat Min Exi Min Mat Fac Low Low Dat Pro Fac Machines Disabled 15 | . 1 . 1 . 6 2 3 1 . 1 . . . Max in Single Turn 2 | . 1 . 1 . 1 2 2 1 . 1 . . . Machines Repaired . | . . . . . . . . . . . . . . Machines Dismantled . | . . . . . . . . . . . . . . Machines Sabotaged . | . . . . . . . . . . . . . . Overloaded Fab Kills . | . . . . . . . . . . . . . . Hacking | -11 -10 -10 -9 -9 -9 -8 -8 -7 -7 -7 -7 -6 -6 --------- Run | Yrd Mat Min Mat Min Exi Min Mat Fac Low Low Dat Pro Fac Machines Accessed 37 | . 8 . 9 . 1 . 6 7 1 . 4 . 1 Terminals 27 | . 7 . 8 . . . 5 5 1 . . . 1 Fabricators 1 | . . . . . . . . 1 . . . . . Repair Stations 1 | . . . 1 . . . . . . . . . . Recycling Units 1 | . 1 . . . . . . . . . . . . Scanalyzers . | . . . . . . . . . . . . . . Garrison Access 2 | . . . . . . . 1 1 . . . . . Total Hacks 128 | . 25 . 26 . 1 . 27 18 1 . 26 . 4 Successful 77 | . 14 . 16 . 1 . 13 6 1 . 26 . . Failed 51 | . 11 . 10 . . . 14 12 . . . . 4 Catastrophic 10 | . 1 . 2 . . . 2 4 . . . . 1 Database Lockouts . | . . . . . . . . . . . . . . Manual 85 | . 23 . 22 . . . 25 12 . . . . 3 Terminals 92 | . 23 . 24 . . . 26 14 1 . . . 4 Fabricators 2 | . . . . . . . . 2 . . . . . Repair Stations 2 | . . . 2 . . . . . . . . . . Recycling Units 2 | . 2 . . . . . . . . . . . . Scanalyzers . | . . . . . . . . . . . . . . Garrison Access 3 | . . . . . . . 1 2 . . . . . Terminal Hacks 45 | . 5 . 6 . 1 . 4 2 1 . 26 . . Record 10 | . . . . . 1 . . . 1 . 8 . . Part Schematic 11 | . . . . . . . . . . . 11 . . Robot Schematic 4 | . . . . . . . . . . . 4 . . Robot Analysis 2 | . 2 . . . . . . . . . . . . Prototype ID Bank 13 | . 2 . 4 . . . 3 1 . . 3 . . Branch Access Points 1 | . . . . . . . . 1 . . . . . Unreport Threat 4 | . 1 . 2 . . . 1 . . . . . . Fabricator Hacks 1 | . . . . . . . . 1 . . . . . Build 1 | . . . . . . . . 1 . . . . . Repair Station Hacks 2 | . . . 2 . . . . . . . . . . Scan Component 1 | . . . 1 . . . . . . . . . . Repair 1 | . . . 1 . . . . . . . . . . Recycling Unit Hacks . | . . . . . . . . . . . . . . Scanalyzer . | . . . . . . . . . . . . . . Garrison Access Hacks . | . . . . . . . . . . . . . . Unauthorized Hacks 29 | . 9 . 8 . . . 9 3 . . . . . Terminals 28 | . 8 . 8 . . . 9 3 . . . . . Botnet 12 | . 3 . 3 . . . 3 3 . . . . . Operators 1 | . . . . . . . 1 . . . . . . Skim 15 | . 5 . 5 . . . 5 . . . . . . Fabricators . | . . . . . . . . . . . . . . Repair Stations . | . . . . . . . . . . . . . . Recycling Units 1 | . 1 . . . . . . . . . . . . Tunnel 1 | . 1 . . . . . . . . . . . . Scanalyzers . | . . . . . . . . . . . . . . Garrison Access . | . . . . . . . . . . . . . . Data Cores Recovered 1 | . 1 . . . . . . . . . . . . Used . | . . . . . . . . . . . . . . Hacking Detections 29 | . 7 . 8 . . . 6 7 . . . . 1 Full Trace Events 1 | . . . . . . . . . . . . . 1 Feedback Events . | . . . . . . . . . . . . . . Feedback Blocked . | . . . . . . . . . . . . . . Robot Schematics Acquired 4 | . . . . . . . . . . . 4 . . Robots Built . | . . . . . . . . . . . . . . Authchips . | . . . . . . . . . . . . . . Time . | . . . . . . . . . . . . . . Total Robot Build Rating . | . . . . . . . . . . . . . . Part Schematics Acquired 11 | . . . . . . . . . . . 11 . . Parts Built 2 | . . . . . . . . 2 . . . . . Authchips . | . . . . . . . . . . . . . . Time 31 | . . . . . . . . 31 . . . . . Total Part Build Rating 10 | . . . . . . . . 10 . . . . . Parts Repaired 1 | . . . 1 . . . . . . . . . . Time 26 | . . . 26 . . . . . . . . . . Parts Recycled . | . . . . . . . . . . . . . . Recycled Matter . | . . . . . . . . . . . . . . Retrieved Matter . | . . . . . . . . . . . . . . Retrieved Components . | . . . . . . . . . . . . . . Parts Scanalyzed . | . . . . . . . . . . . . . . Part Schematics Acquired . | . . . . . . . . . . . . . . Parts Damaged . | . . . . . . . . . . . . . . Bothacking | -11 -10 -10 -9 -9 -9 -8 -8 -7 -7 -7 -7 -6 -6 ------------ Run | Yrd Mat Min Mat Min Exi Min Mat Fac Low Low Dat Pro Fac Used RIF Installer . | . . . . . . . . . . . . . . Robots Hacked . | . . . . . . . . . . . . . . Non-combat . | . . . . . . . . . . . . . . Combat . | . . . . . . . . . . . . . . Robot Hacks Applied . | . . . . . . . . . . . . . . Relay Couplers Released . | . . . . . . . . . . . . . . Fabnet Peak Effective % . | . . . . . . . . . . . . . . Robots Rewired 1 | . . . . . . . . . . 1 . . . Allies Hacked . | . . . . . . . . . . . . . . Hacks Repelled . | . . . . . . . . . . . . . . Allies | -11 -10 -10 -9 -9 -9 -8 -8 -7 -7 -7 -7 -6 -6 -------- Run | Yrd Mat Min Mat Min Exi Min Mat Fac Low Low Dat Pro Fac Total Allies 4 | . . 3 . . . . . . . 1 . . . Largest Group 3 | . . 3 . . . . . . . 1 1 1 . Highest-Rated Group 40 | . . 40 . . . . . . . 30 30 30 . Highest-Rated Ally 30 | . . 16 . . . . . . . 30 30 30 . Total Orders . | . . . . . . . . . . . . . . Ally Attacks 41 | . . 35 . . . . . . . . . 6 . Total Damage 456 | . . 342 . . . . . . . . . 114 . Kills 9 | . . 8 . . . . . . . . . 1 . Allies Corrupted . | . . . . . . . . . . . . . . Allies Melted . | . . . . . . . . . . . . . . Intel | -11 -10 -10 -9 -9 -9 -8 -8 -7 -7 -7 -7 -6 -6 ------- Run | Yrd Mat Min Mat Min Exi Min Mat Fac Low Low Dat Pro Fac Active Infowar (turns) 7397 | . . . . . . . 1 2838 1248 1320 200 1121 669 Sensors 6903 | . . . . . . . 1 2381 1232 1320 200 1121 648 Jamming 958 | . . . . . . . . 457 16 . . 9 476 Robot Analysis Total 2 | . 2 . . . . . . . . . . . . Derelict Logs Recovered 6 | . . 2 . . . . . . 1 2 . 1 . Drone Launches . | . . . . . . . . . . . . . . Drone Recoveries . | . . . . . . . . . . . . . . Exploration | -11 -10 -10 -9 -9 -9 -8 -8 -7 -7 -7 -7 -6 -6 ------------- Run | Yrd Mat Min Mat Min Exi Min Mat Fac Low Low Dat Pro Fac Turns Passed 21941 | 3 1987 2103 3140 362 3246 424 3054 2860 1248 1388 200 1129 797 Spaces Moved 8240 | 3 754 697 1134 140 1318 156 1097 1083 505 558 83 437 275 Core 18 | . . . . . . . . . . . . . 18 Treads 8027 | . 562 697 1134 140 1318 156 1097 1083 505 558 83 437 257 Legs 195 | 3 192 . . . . . . . . . . . . Wheels . | . . . . . . . . . . . . . . Hover . | . . . . . . . . . . . . . . Flight . | . . . . . . . . . . . . . . Fastest Speed 50 | 120 120 240 160 240 160 240 240 240 243 238 238 238 50 Average Speed 231 | 120 207 240 218 240 223 240 240 240 243 240 238 238 226 Slowest Speed 320 | 120 240 240 320 240 320 240 320 243 243 243 238 238 241 Overloaded Moves . | . . . . . . . . . . . . . . Propulsion Burnouts . | . . . . . . . . . . . . . . Robots Hopped . | . . . . . . . . . . . . . . Potential Cave-ins . | . . . . . . . . . . . . . . Cave-ins Triggered . | . . . . . . . . . . . . . . Exploration Rate (%) 56 | 2 99 80 91 24 72 36 68 29 68 80 69 63 8 Regions Visited 13 Branch Regions 8 Pre-discovered Areas 7 | . 1 3 . . 1 . 1 . . . 1 . . Known Exits Taken 10 | . . 1 1 . 1 1 1 1 1 1 1 1 . Unknown Exits Taken 3 | 1 1 . . 1 . . . . . . . . . Scrap Searched 10 | . . 1 . . . 1 . . 2 3 . 3 . Spaces Dug 15 | . . . . . . . . 15 . . . . . Terrain Destroyed 299 | . . . 64 . 46 32 71 15 . 17 . 44 10 Melee . | . . . . . . . . . . . . . . Projectile 13 | . . . . . . . 9 . . . . 1 3 AOE 286 | . . . 64 . 46 32 62 15 . 17 . 43 7 Terrain Rammed . | . . . . . . . . . . . . . . Walls Destroyed . | . . . . . . . . . . . . . . Machines Disabled . | . . . . . . . . . . . . . . Actions | -11 -10 -10 -9 -9 -9 -8 -8 -7 -7 -7 -7 -6 -6 --------- Run | Yrd Mat Min Mat Min Exi Min Mat Fac Low Low Dat Pro Fac Total 10348 | 2 1091 1052 1641 149 1517 178 1411 1247 521 586 88 503 362 Wait 1213 | . 257 303 350 . 58 . 153 34 10 . . 44 4 Move 8227 | 2 753 696 1133 139 1317 155 1096 1082 504 557 82 436 275 Hop . | . . . . . . . . . . . . . . Pick Up 139 | . 15 3 25 1 42 2 25 18 . 1 . 1 6 Fast Attach 36 | . 6 1 8 . 4 . 10 1 1 . . . 5 Attach 55 | . 2 2 4 . 11 4 5 5 . 7 3 1 11 Detach 10 | . 4 . . . . . . . . . 3 . 3 Swap 72 | . 1 3 12 . 3 1 15 20 3 3 . 6 5 Drop 108 | . 5 3 27 1 21 . 28 22 1 . . . . Fire 441 | . 45 39 76 8 58 14 73 55 2 11 . 15 45 Melee . | . . . . . . . . . . . . . . Ram . | . . . . . . . . . . . . . . Kick 2 | . 2 . . . . . . . . . . . . Crush 38 | . 1 2 6 . 2 2 6 10 . 1 . . 8 Escape Stasis . | . . . . . . . . . . . . . . Rewire 7 | . . . . . 1 . . . . 6 . . . Trap . | . . . . . . . . . . . . . . Miscellaneous . | . . . . . . . . . . . . . . Route ------- -11/Scrapyard -10/Materials (discovered 6 exits: *Mat x3 / [*Min x2] / Sub) -10/Mines (discovered 2 exits: *Mat x2) -9/Materials (discovered 3 exits: *Mat x2 / *Min) -9/Mines (discovered 3 exits: Mat x2 / *Exi) -9/Exiles (discovered 2 exits: *Min x2) -8/Mines -8/Materials (discovered 3 exits: *Fac x3) -7/Factory (discovered 3 exits: Sto / *Low x2) -7/Lower Caves -7/Lower Caves (discovered 2 exits: *Fac / *Dat) -7/Data Miner -6/Proximity Caves -6/Factory (discovered 2 exits: Fac / Low) History --------- Turn | Location | Event 1 | -11/Scrapyard | Discovered new exit (range 3) 4 | -11/Scrapyard | Entered Materials 144 | -10/Materials | Discovered new exit (range 15) 266 | -10/Materials | Discovered new exit (range 9) 331 | -10/Materials | Build established: Mutant 506 | -10/Materials | Discovered new exit (range 10) 1239 | -10/Materials | Discovered new exit (range 16) 1283 | -10/Materials | Discovered new exit (range 15) 1545 | -10/Materials | Identified exit to Subcaves 1545 | -10/Materials | Learned location of 2 exits from Materials 1871 | -10/Materials | Loaded intel: 13 trap records 1991 | -10/Materials | Entered Mines 1992 | -10/Mines | Identified exit to Materials 2013 | -10/Mines | Found a hidden stash of uninstalled traps 2410 | -10/Mines | Assisted by bots powering up and referring to "LRC-V3" 2481 | -10/Mines | Learned location of Storage (-7) 2924 | -10/Mines | Assembled infested the area 2929 | -10/Mines | Assisted by a Guerilla fighting off Assembled 3925 | -10/Mines | Core integrity fell below 50% 4094 | -10/Mines | Entered Materials 4094 | -9/Materials | Evolved 2 slots: Propulsion x1, Weapon x1 4095 | -9/Materials | Identified exit to Mines 4096 | -9/Materials | Identified exit to Materials 4394 | -9/Materials | Build established: Gunner 4654 | -9/Materials | Destroyed 7 combat bots 4860 | -9/Materials | Build established: Tank 5310 | -9/Materials | Build established: Scavenger-Tank 5460 | -9/Materials | Learned 4 Recycling zone layouts 5523 | -9/Materials | Learned location of 2 exits from Materials 5541 | -9/Materials | Learned Storage security intel 5570 | -9/Materials | Learned location of 3 exits from Materials 5599 | -9/Materials | Learned location of 1 exit from Storage 5781 | -9/Materials | Destroyed 7 combat bots 5946 | -9/Materials | Repaired Lgt. Treads 6834 | -9/Materials | Build established: Tank 7234 | -9/Materials | Entered Mines 7556 | -9/Mines | Found a damaged Exp. Sensor Array with a note attached 7561 | -9/Mines | Found Prototype Device 7586 | -9/Mines | Deemed a non-threat by the Exiles lab entrance 7586 | -9/Mines | Discovered new exit (range 5) 7596 | -9/Mines | Entered Exiles 7597 | -9/Exiles | Identified exit to Mines 7636 | -9/Exiles | Discovered exit to Mines (range 14) 7665 | -9/Exiles | Met 8R-AWN 7701 | -9/Exiles | Met EX-HEX 7845 | -9/Exiles | Met EX-DEC 7913 | -9/Exiles | Build established: Mutant 7936 | -9/Exiles | Learned location of Zion (-6) 9584 | -9/Exiles | Attacked by the Exiles 9744 | -9/Exiles | Destroyed 8R-AWN 9766 | -9/Exiles | Lost 5 parts (1p1n2u1w) 9847 | -9/Exiles | Core integrity fell below 50% 9986 | -9/Exiles | Destroyed EX-HEX 10021 | -9/Exiles | Build established: Scavenger-Tank 10114 | -9/Exiles | Core integrity fell below 20% 10123 | -9/Exiles | System corruption reached 10% 10155 | -9/Exiles | Lost 5 parts (1p1n1u2w) 10352 | -9/Exiles | Build established: Scavenger-Mutant 10842 | -9/Exiles | Entered Mines 11247 | -8/Mines | Discovered exit to Materials (range 4) 11266 | -8/Mines | Entered Materials 11266 | -8/Materials | Evolved 2 slots: Utility x2 11267 | -8/Materials | Identified exit to Factory 11358 | -8/Materials | Build established: Tank 11375 | -8/Materials | Identified Exp. Sensor Array 11546 | -8/Materials | Destroyed 8 combat bots 11662 | -8/Materials | Build established: Scavenger-Tank 11875 | -8/Materials | Garrison activated, responded to threat 12111 | -8/Materials | Garrison activated, responded to threat 14130 | -8/Materials | Learned location of Lower Caves (-6) 14211 | -8/Materials | Learned Factory security intel 14238 | -8/Materials | Learned Factory trap positions 14274 | -8/Materials | Learned Storage garrison access intel 14320 | -8/Materials | Learned Factory security intel 14320 | -8/Materials | Entered Factory 14320 | -7/Factory | Evolved 2 slots: Utility x2 14321 | -7/Factory | Identified exit to Storage 14322 | -7/Factory | Loaded intel: 95 trap records 14995 | -7/Factory | Fabricated Adv. Terrain Scanner (x2) 15912 | -7/Factory | Identified exit to Lower Caves 16768 | -7/Factory | Build established: Tank 17180 | -7/Factory | Entered Lower Caves 17925 | -7/Lower Caves | Learned location of 1 exit from Factory 18103 | -7/Lower Caves | Discovered new exit (range 11) 18426 | -7/Lower Caves | Identified exit to Lower Caves 18428 | -7/Lower Caves | Entered another Lower Caves area 18463 | -7/Lower Caves | Discovered new exit (range 10) 18484 | -7/Lower Caves | Identified exit to Factory 19043 | -7/Lower Caves | Learned 4 Factory zone layouts 19067 | -7/Lower Caves | Attracted the attention of an 0b10 outpost 19129 | -7/Lower Caves | Lost 6 parts (1p2n3u) 19445 | -7/Lower Caves | Build established: Skirmisher 19778 | -7/Lower Caves | Discovered new exit (range 9) 19814 | -7/Lower Caves | Identified exit to Data Miner 19816 | -7/Lower Caves | Entered Data Miner 19816 | -7/Data Miner | Accompanied by 1 ally 19818 | -7/Data Miner | Discovered new exit (range 6) 19863 | -7/Data Miner | Met Data Miner 19908 | -7/Data Miner | Learned location of Section 7 (-2) 19908 | -7/Data Miner | Acquired the access code to Warlord's prototype stash 19947 | -7/Data Miner | Received God Mode back door access code from Data Miner 20011 | -7/Data Miner | Identified exit to Proximity Caves 20016 | -7/Data Miner | Entered Proximity Caves 20016 | -6/Proximity Caves | Accompanied by 1 ally 20018 | -6/Proximity Caves | Spotter reported a threat 20019 | -6/Proximity Caves | Spotter reported a threat 20339 | -6/Proximity Caves | Spotter reported a threat 20392 | -6/Proximity Caves | Spotter reported a threat 20415 | -6/Proximity Caves | Learned Factory emergency access door positions 20495 | -6/Proximity Caves | Spotter reported a threat 20568 | -6/Proximity Caves | Spotter reported a threat 21081 | -6/Proximity Caves | Discovered exit to Factory (range 11) 21145 | -6/Proximity Caves | Entered Factory 21145 | -6/Factory | Evolved 2 slots: Power x1, Propulsion x1 21146 | -6/Factory | Identified exit to Lower Caves 21147 | -6/Factory | Identified exit to Factory 21692 | -6/Factory | Noticed a derelict Sapper rigging charges 21731 | -6/Factory | Lost 4 parts (1n1u2w) 21845 | -6/Factory | Search patrols dispatched 21905 | -6/Factory | Cargo convoy interrupted 21928 | -6/Factory | Core integrity fell below 50% 21933 | -6/Factory | Released all parts (4) 21935 | -6/Factory | Core integrity fell below 20% 21942 | -6/Factory | Destroyed by H-66 Slayer with Gauss Rifle Last Messages --------------- 21932_ Thermic Laser destroyed. 21933_ Slug penetrates Wall. 21933_ Adv. Treads destroyed. 21933_ Penetrated by Slug. 21933_ K-01 Serf collects debris. 21933_ Released Adv. Signal Interpreter. 21933_ Released Hacking Suite. 21933_ Released Transmission Jammer. 21933_ Released Huge Storage Unit. 21934_ Overheating: Matter decay (-19). 21934_ Penetrated by Slug. 21934_ Slug penetrates P-60 Hacker. 21934_ M-28 Smith repairs H-66 Slayer. 21935_ Slug penetrates Wall. 21936_ M-28 Smith repairs X-72 Disruptor Arc Projector. 21938_ Overheating: Energy bleed (-17). 21938_ U-05 Engineer builds a Wall. 21939_ Slug penetrates Wall. 21940_ Slug penetrates X-62 Marksman. 21942_ Penetrated by Slug. Map ----- +----------------------------------------------------+ | ????????????# ?# | | ????????????# # + % | | ????????????# # # | | ????????????# + # | | ????????????# # # | | ????????????# ] # # | | ????????????# ?# ## | | ????????????# ?# + | | ????????????####+######+# # | | ??????????????? ### ###### | | ??????????????? % | | ??????????????? | | ??????????????? ! | | ??????????????? ! | | ????????????????#### !"" | | ???????????????????# *???? | | ???????????????????# w **???? | | ???????????????????# =???? | | ???????????????????# ???? | | ???????????????????# #" " ""##????? | | ???????????????????# u ##########?????? | | ???????????????????# #??????????????? | | ???????????????????# #??????????????? | | ???????????????????# k #??????????????? | | ???????????????????# ###/################??? | | ???????????????????## @## *%[ #??? | | ????????????????????# ##%*= ""#??? | | ???????????????? "" # %##*!! ""#??? | | ???????????????? Y" + % h##!|""" """ """ T"#??? | | ????????????????????# um/!]""" """ """ ""#??? | | ????????????????????# u%*!*]""" """ """ ""#??? | | ????????????????????# ##![! #??? | | ????????????????????# ##*! #??? | | ????????????????????# #####################??? | | ????????????????????# ???????????????????????? | | ????????????????????# ???????????????????????? | | ????????????????????# ???????????????????????? | | ????????????????????# ???????????????????????? | | ????????????????????# ???????????????????????? | | ?????????????????????#####???????????????????????? | | ?????????????????????????????????????????????????? | | ?????????????????????????????????????????????????? | | ?????????????????????????????????????????????????? | | ?????????????????????????????????????????????????? | | ?????????????????????????????????????????????????? | | ?????????????????????????????????????????????????? | | ?????????????????????????????????????????????????? | | ?????????????????????????????????????????????????? | | ?????????????????????????????????????????????????? | | ?????????????????????????????????????????????????? | +----------------------------------------------------+ Best States ------------- Heat Dissipation 61 Energy Generation 31 Energy Capacity 520 Matter Stores 300 Matter Capacity 300 Sight Range 16 Robot Scan Range 20 Terrain Scan Density 10 Jamming Range 12 Additional Mass Support 6 Armor Coverage 375 Resistance: KI 30 Weapon Shielding 33 Evasion (%) 55 Recoil Reduction 4 Offensive Hacking 10 Item Schematics ----------------- Combat Drone Bay | -7/Data Miner | Free Lgt. Regenerative Plating | -7/Data Miner | Free Cld. Cesium-ion Thruster | -7/Data Miner | Free Thermal Defense Suite | -7/Data Miner | Free Antigrav System | -7/Data Miner | Free Prc. Rocket Launcher | -7/Data Miner | Free Imp. Recalibrator | -7/Data Miner | Free Imp. Plasma Cutter | -7/Data Miner | Free Lrn. Proton Cannon | -7/Data Miner | Free Adv. Shield Generator | -7/Data Miner | Free Antimatter Reactor | -7/Data Miner | Free Robot Schematics ------------------ X-57 Shotgunner | -7/Data Miner | Free G-47 Trooper | -7/Data Miner | Free A-15 Conveyor | -7/Data Miner | Free B-48 Gladiator | -7/Data Miner | Free Fabricated ------------ Adv. Terrain Scanner | x2 | -7/Factory | Preloaded Repaired ---------- Lgt. Treads | 14% | -9/Materials Alien Tech Used ----------------- None Achievements -------------- None Challenges ------------ None Game ------ Seed PointyFortressScanner Manual? 0 Play Time 02:07:46 Cumulative 157.8 hours Start 2025.06.08 @ 19:39:26 End 2025.06.08 @ 22:43:35 Sessions 1 Manual Loads 0 Difficulty Rogue Special Mode None Game No. 84 Rogue 84 Adventurer 0 Explorer 0 Win Type - Total 4 Types 3/0/1/0/0/0/0/0/0/0 Lore% 54 Gallery% 43 Achievement% 45 Wizard Run 0 Options --------- Layout 0 ASCII 0 Keyboard 1 Movement Vi Keybinds 0 Fullscreen 2 Font 24/Terminus Map View 76x50 Zoom Use 0% Tactical HUD 1 Map Filters NONE Filters NONE Steam 1 RUN: f22e763e-e40b-4672-b9bd-f46de0e49886